bitfinex/quotes_SOLUSD_20240717
["timestamp","ask_amount","ask_price","bid_price","bid_amount"]
[1721239495391,6.3854,156.61,156.58,15.67]
[1721239495799,6.3857,156.6,156.58,15.67]
[1721239496308,6.3854,156.61,156.58,15.67]
[1721239497203,6.3863,156.59,156.57,15.67]
[1721239497505,6.3863,156.59,156.56,15.67]
[1721239498502,6.3858,156.6,156.56,22.0572]
[1721239499203,22.0554,156.61,156.57,6.3868]
[1721239499407,6.3851,156.62,156.58,7.66335578]
[1721239499706,15.67,156.63,156.58,23.33335578]
[1721239500112,6.3853,156.61,156.58,16.94705578]
[1721239500808,6.3853,156.61,156.58,23.33355578]
[1721239500993,6.3853,156.61,156.58,16.94705578]
[1721239501193,6.3848,156.62,156.59,30.8435]
[1721239501388,15.9603,156.64,156.59,15.1735]
[1721239501693,15.67,156.62,156.56,15.67]
[1721239502091,6.3861,156.59,156.56,15.67]
[1721239502297,6.3866,156.58,156.55,180.8435]
[1721239502503,15.9625,156.62,156.56,15.67]
[1721239502689,15.67,156.61,156.56,31.6379]
[1721239502895,6.3846,156.63,156.58,6.3862]
[1721239503217,6.3852,156.62,156.58,32.91282623]
[1721239503400,15.67,156.63,156.58,16.94702623]
[1721239503608,6.3857,156.6,156.58,16.94702623]
[1721239503792,6.3854,156.61,156.58,16.94702623]
[1721239504724,6.3854,156.61,156.58,15.67]
[1721239504914,15.67,156.62,156.56,15.67]
[1721239505109,15.67,156.62,156.55,180.8435]
[1721239505110,15.67,156.61,156.55,180.8435]
[1721239505325,6.3863,156.59,156.55,187.2312]
[1721239505940,6.3858,156.6,156.56,1.27721516]
[1721239506116,6.3858,156.6,156.56,16.94721516]
[1721239506317,6.3858,156.6,156.56,23.33441516]
[1721239506730,6.3858,156.6,156.56,16.94721516]
[1721239508233,6.3866,156.58,156.56,16.94721516]
[1721239508542,6.3866,156.58,156.56,15.67]
[1721239508719,6.3861,156.59,156.55,187.2311]
[1721239509039,6.3861,156.59,156.56,15.67]
[1721239509210,6.3869,156.57,156.55,165.1735]
[1721239509413,15.9617,156.63,156.55,150.0]
[1721239509414,22.0565,156.58,156.55,150.0]
[1721239509612,6.3865,156.58,156.55,150.0]
[1721239509925,22.0565,156.58,156.55,150.0]
[1721239510126,6.3869,156.57,156.55,150.0]
[1721239510702,22.0569,156.57,156.55,150.0]
[1721239511208,6.3873,156.56,156.55,150.0]
[1721239511636,22.0569,156.57,156.55,150.0]
[1721239512042,6.3869,156.57,156.55,150.0]
[1721239512221,15.67,156.58,156.55,156.3877]
[1721239512614,22.0562,156.59,156.55,156.3877]
[1721239512812,15.67,156.6,156.56,1.27740968]
[1721239513010,6.3861,156.59,156.56,1.27740968]
[1721239513211,22.0558,156.6,156.56,1.27740968]
[1721239513415,22.0558,156.6,156.55,181.6387]
[1721239513416,15.67,156.6,156.55,181.6387]
[1721239513631,6.3867,156.58,156.55,150.0]
[1721239514147,15.67,156.61,156.56,16.94731289]
[1721239514312,6.3854,156.61,156.57,22.0566]
[1721239514645,6.3854,156.61,156.58,1.27712275]
[1721239515615,6.3854,156.61,156.57,37.2204]
[1721239515964,6.3854,156.61,156.58,15.67]
[1721239516259,6.385,156.62,156.58,16.94700844]
[1721239517012,22.0545,156.63,156.58,17.24270844]
[1721239517233,6.3845,156.63,156.59,15.67]
[1721239517432,6.3845,156.63,156.6,1.27694131]
[1721239517623,6.3845,156.63,156.61,1.27691316]
[1721239518535,15.9565,156.68,156.61,1.27691316]
[1721239518870,6.3829,156.67,156.63,15.67]
[1721239519147,6.3832,156.66,156.64,1.27667302]
[1721239519717,6.3825,156.68,156.64,39.19197302]
[1721239519954,6.3822,156.69,156.65,16.94645454]
[1721239520152,6.3829,156.67,156.64,31.5316]
[1721239520526,6.3829,156.67,156.65,1.27653047]
[1721239521019,6.3829,156.67,156.64,31.5316]
[1721239521523,6.3833,156.66,156.64,15.8616]
[1721239521927,22.0529,156.67,156.64,15.8616]
[1721239522139,6.3829,156.67,156.64,15.8616]
[1721239522837,6.3834,156.66,156.64,15.8616]
[1721239523242,6.3828,156.67,156.64,15.8616]
[1721239523836,6.3825,156.68,156.64,22.2455]
[1721239525145,6.3825,156.68,156.65,1.27651943]
[1721239525565,6.3829,156.67,156.64,15.8616]
[1721239527049,6.3825,156.68,156.64,17.13820898]
[1721239527238,6.3818,156.7,156.66,6.3829]
[1721239527555,6.3818,156.7,156.67,1.27640488]
[1721239528926,6.3813,156.71,156.68,1.27637766]
[1721239529549,6.3809,156.72,156.69,1.27569427]
[1721239529841,6.3809,156.72,156.68,22.3381]
[1721239529842,6.3811,156.72,156.68,22.3381]
[1721239530031,6.3815,156.71,156.66,6.3829]
[1721239530232,6.3815,156.71,156.67,6.3827]
[1721239532340,6.3808,156.72,156.68,6.3823]
[1721239532836,6.3805,156.73,156.69,6.3819]
[1721239533447,6.38,156.74,156.7,7.65758572]
[1721239533752,6.38,156.74,156.71,1.27605867]
[1721239534329,6.38,156.74,156.7,6.3815]
[1721239535052,6.3797,156.75,156.71,6.3811]
[1721239537144,6.38,156.74,156.7,6.3814]
[1721239537326,6.38,156.74,156.65,67.532]
[1721239537327,6.3811,156.72,156.67,6.3824]
[1721239537544,6.3805,156.73,156.66,16.1275]
[1721239537773,6.3801,156.74,156.7,6.3815]
[1721239539250,61.55439513,156.8,156.71,6.381]
[1721239539251,6.3796,156.75,156.71,6.381]
[1721239540577,46.15919513,156.8,156.73,6.3802]
[1721239540868,39.5045305,156.8,156.73,6.3802]
[1721239541951,6.3787,156.77,156.73,6.3802]
[1721239542132,0.8110305,156.8,156.75,6.3792]
[1721239542337,16.4510305,156.8,156.76,1.27567884]
[1721239542549,6.3782,156.79,156.76,1.27567884]
[1721239543255,0.8110305,156.8,156.76,16.91567884]
[1721239543446,16.4510305,156.8,156.75,16.91564126]
[1721239544238,0.8110305,156.8,156.75,1.27564126]
[1721239544435,6.3784,156.78,156.75,1.27564126]
[1721239546259,6.3784,156.78,156.75,1.27565149]
[1721239549170,6.378,156.79,156.75,7.65515149]
[1721239550463,6.3784,156.78,156.74,22.3291]
[1721239550645,6.3788,156.77,156.73,6.3803]
[1721239551145,6.3791,156.76,156.72,12.9286]
[1721239551346,15.9451,156.79,156.72,6.548]
[1721239553162,6.3794,156.76,156.72,12.9287]
[1721239553746,15.9451,156.79,156.73,6.3803]
[1721239553747,6.3789,156.77,156.73,6.3803]
[1721239553944,0.8110305,156.8,156.76,6.3789]
[1721239554150,7.1888305,156.8,156.76,6.3789]
[1721239554553,7.1888305,156.8,156.77,1.27550792]
[1721239557363,6.378,156.79,156.75,22.3276]
[1721239558757,7.1887305,156.8,156.76,1.27551315]
[1721239559669,7.1887305,156.8,156.77,1.27546633]
[1721239560352,0.8110305,156.8,156.72,41.7092]
[1721239560555,0.8110305,156.8,156.73,51.38]
[1721239560556,6.3791,156.77,156.73,51.38]
[1721239560759,0.8110305,156.8,156.73,45.0]
[1721239561053,6.3791,156.76,156.72,28.8796]
[1721239561376,6.3788,156.77,156.73,7.65602971]
[1721239561563,6.3788,156.77,156.73,6.3803]
[1721239562153,6.3784,156.78,156.74,6.3799]
[1721239564356,6.3784,156.78,156.76,15.64]
[1721239564654,7.1887305,156.8,156.77,15.64]
[1721239564866,7.1887305,156.8,156.78,15.64]
[1721239565079,0.8110305,156.8,156.77,22.0187]
[1721239565402,0.8110305,156.8,156.78,15.64]
[1721239565578,7.1885305,156.8,156.78,15.64]
[1721239567167,0.8110305,156.8,156.76,15.64]
[1721239567683,6.3782,156.79,156.77,15.64]
[1721239568061,6.3782,156.79,156.76,15.64]
[1721239568261,6.3782,156.79,156.77,15.64]
[1721239568582,0.8110305,156.8,156.77,15.64]
[1721239568981,0.8110305,156.8,156.76,15.64]
[1721239569175,6.3783,156.78,156.76,15.64]
[1721239569377,0.8110305,156.8,156.76,15.64]
[1721239569686,0.8110305,156.8,156.77,15.64]
[1721239569687,7.1888305,156.8,156.77,15.64]
[1721239570756,7.1888305,156.8,156.77,22.0186]
[1721239570757,0.8110305,156.8,156.77,22.0186]
[1721239570984,0.8110305,156.8,156.78,16.91539317]
[1721239571687,7.1885305,156.8,156.77,15.64]
[1721239572268,0.8110305,156.8,156.77,22.0187]
[1721239572657,0.8110305,156.8,156.78,23.29371352]
[1721239572861,0.8110305,156.8,156.79,15.64]
[1721239574278,6.3782,156.79,156.76,15.4219]
[1721239574778,15.64,156.79,156.72,6.548]
[1721239575082,6.3784,156.78,156.74,15.64]
[1721239575278,0.8110305,156.8,156.77,15.64]
[1721239575664,7.1886305,156.8,156.76,22.019]
[1721239576190,0.8110305,156.8,156.77,15.64]
[1721239577189,16.4510305,156.8,156.72,54.4021]
[1721239577367,5.3783,156.78,156.75,15.64]
[1721239578469,6.378,156.79,156.75,15.64]
[1721239578663,6.378,156.79,156.75,22.0195]
[1721239579084,6.378,156.79,156.75,15.64]
[1721239579271,6.378,156.79,156.75,22.0195]
[1721239579867,6.378,156.79,156.75,15.64]
[1721239580183,6.378,156.79,156.75,15.72899776]
[1721239580391,22.8286305,156.8,156.75,22.10849776]
[1721239580777,7.1886305,156.8,156.76,15.64]
[1721239581284,6.3781,156.79,156.75,15.72899776]
[1721239581873,15.64,156.77,156.75,0.08899776]
[1721239582079,22.0188,156.77,156.75,0.08899776]
[1721239582292,6.3788,156.77,156.75,0.08899776]
[1721239582471,22.0183,156.78,156.75,0.08899776]
[1721239582669,6.3789,156.77,156.75,0.08899776]
[1721239582865,15.64,156.78,156.75,0.08899776]
[1721239583069,6.3787,156.78,156.75,0.08899776]
[1721239583876,6.3787,156.77,156.75,0.08899776]
[1721239585401,22.1185305,156.8,156.75,0.08899776]
[1721239585402,15.9647305,156.8,156.75,0.08899776]
[1721239585601,31.6047305,156.8,156.75,15.72899776]
[1721239585991,6.3786,156.78,156.75,15.72899776]
[1721239586492,6.3787,156.77,156.75,15.72899776]
[1721239586788,6.3787,156.77,156.75,0.08899776]
[1721239586993,6.3785,156.78,156.75,0.08899776]
[1721239587374,6.3791,156.76,156.75,0.08899776]
[1721239588278,22.0191,156.76,156.75,0.08899776]
[1721239588696,15.64,156.76,156.75,0.08899776]
[1721239588899,22.0188,156.77,156.75,0.08899776]
[1721239589196,6.3788,156.77,156.75,0.08899776]
[1721239589582,16.4510305,156.8,156.75,15.72899776]
[1721239589796,6.378,156.79,156.75,22.10819776]
[1721239590384,0.8110305,156.8,156.75,0.08899776]
[1721239590704,15.64,156.77,156.75,0.08899776]
[1721239590992,6.3785,156.78,156.75,0.08899776]
[1721239591193,6.3788,156.77,156.75,0.08899776]
[1721239591386,22.0188,156.77,156.75,0.08899776]
[1721239593194,6.3791,156.76,156.75,0.08899776]
[1721239593619,6.3788,156.77,156.75,0.08899776]
[1721239594497,6.3785,156.78,156.75,0.08899776]
[1721239595399,6.3788,156.77,156.75,0.08899776]
[1721239595597,6.3788,156.77,156.73,22.0203]
[1721239596801,6.3788,156.77,156.74,15.64]
[1721239596990,22.0183,156.79,156.75,1.27576432]
[1721239597598,6.3783,156.79,156.75,16.91576432]
[1721239598196,6.3783,156.78,156.75,16.91576432]
[1721239598605,6.379,156.77,156.74,15.64]
[1721239599205,6.3792,156.76,156.73,15.64]
[1721239599501,6.3792,156.76,156.72,22.0207]
[1721239600198,6.3792,156.76,156.73,6.3803]
[1721239600904,22.0189,156.77,156.73,6.3803]
[1721239601904,15.64,156.77,156.74,6.3799]
[1721239602114,16.4510305,156.8,156.75,16.91579734]
[1721239602329,0.8110305,156.8,156.73,15.6442]
[1721239602612,0.8110305,156.8,156.78,6.3783]
[1721239602819,0.8110305,156.8,156.78,22.0183]
[1721239604415,0.8110305,156.8,156.79,15.64]
[1721239604598,0.8110305,156.8,156.79,16.91534377]
[1721239605113,0.8110305,156.8,156.78,15.64]
[1721239605829,0.8110305,156.8,156.74,15.64]
[1721239605830,15.64,156.79,156.74,15.64]
[1721239606122,6.3786,156.78,156.74,15.64]
[1721239606296,6.379,156.77,156.74,15.64]
[1721239606698,6.379,156.77,156.73,28.3446]
[1721239606699,6.3792,156.76,156.73,31.2842]
[1721239606990,15.64,156.78,156.73,15.64]
[1721239607192,15.64,156.77,156.72,31.5911]
[1721239607620,22.0188,156.77,156.73,6.3801]
[1721239608524,22.0188,156.77,156.73,6.3803]
[1721239608820,6.3784,156.78,156.74,22.0199]
[1721239609823,6.3784,156.78,156.74,37.9691]
[1721239609824,6.3783,156.78,156.74,37.9691]
[1721239610201,6.3783,156.78,156.75,1.27571304]
[1721239610407,22.0182,156.79,156.75,1.27571304]
[1721239610621,22.0182,156.79,156.74,37.9691]
[1721239610926,6.3783,156.78,156.74,37.9691]
[1721239611321,6.3783,156.78,156.74,31.5893]
[1721239612241,6.3783,156.78,156.74,37.9692]
[1721239612901,6.3789,156.77,156.74,31.5893]
[1721239613233,6.3789,156.77,156.73,15.64]
[1721239613705,15.64,156.79,156.74,16.91580435]
[1721239613900,6.3783,156.78,156.74,23.29535885]
[1721239614104,6.3781,156.79,156.75,22.0195]
[1721239614331,6.3781,156.79,156.76,1.27564572]
[1721239615132,7.1885305,156.8,156.77,16.91564716]
[1721239615317,0.8110305,156.8,156.77,23.29424716]
[1721239615626,7.1885305,156.8,156.77,16.91564716]
[1721239616120,6.3783,156.78,156.77,15.64]
[1721239616427,0.8110305,156.8,156.77,15.64]
[1721239616604,0.8110305,156.8,156.78,1.27550196]
[1721239617310,7.1888305,156.8,156.78,1.27550196]
[1721239617519,0.8110305,156.8,156.78,15.64]
[1721239617720,0.8110305,156.8,156.79,16.91540581]
[1721239618654,0.8110305,156.8,156.79,15.64]
[1721239619189,0.8110305,156.8,156.79,22.0179]
[1721239619450,0.8110305,156.8,156.79,23.29322765]
[1721239620447,0.8110305,156.8,156.79,15.64]
[1721239620630,0.8110305,156.8,156.79,6.3779]
[1721239620830,0.8110305,156.8,156.79,15.64]
[1721239622423,0.8110305,156.8,156.79,67.0179]
[1721239624030,0.8110305,156.8,156.79,67.1879]
[1721239625657,0.8110305,156.8,156.79,86.3979]
[1721239629153,0.8110305,156.8,156.79,118.2876]
[1721239629456,0.8110305,156.8,156.79,118.4576]
[1721239629666,0.8110305,156.8,156.79,133.5152]
[1721239629835,0.8110305,156.8,156.79,149.1552]
[1721239630242,0.8110305,156.8,156.79,133.5152]
[1721239633649,0.8110305,156.8,156.79,149.1552]
[1721239634432,0.8110305,156.8,156.79,133.5152]
[1721239635652,0.8110305,156.8,156.79,149.1552]
[1721239636235,0.39758882,156.8,156.79,169.1552]
[1721239636570,0.39758882,156.8,156.79,216.0752]
[1721239643360,0.39758882,156.8,156.79,114.3052]
[1721239643659,0.39758882,156.8,156.79,53.9076]
[1721239644849,0.39758882,156.8,156.79,99.0776]
[1721239645048,0.39758882,156.8,156.79,119.5126103]
[1721239645397,0.39758882,156.8,156.79,135.3226103]
[1721239645602,0.39758882,156.8,156.79,134.0476]
[1721239645777,0.39758882,156.8,156.79,118.4076]
[1721239646149,0.39758882,156.8,156.79,135.32254229]
[1721239646740,0.39758882,156.8,156.79,134.0476]
[1721239647463,0.39758882,156.8,156.79,118.4076]
[1721239648035,0.39758882,156.8,156.79,134.0476]
[1721239648951,0.39758882,156.8,156.79,83.6076]
[1721239649166,0.39758882,156.8,156.79,99.2476]
[1721239650241,0.39758882,156.8,156.79,118.4076]
[1721239650848,0.39758882,156.8,156.79,99.2476]
[1721239651545,0.39758882,156.8,156.79,99.0776]
[1721239652562,0.39758882,156.8,156.79,118.2376]
[1721239652773,0.39758882,156.8,156.79,134.0476]
[1721239654458,0.39758882,156.8,156.79,180.9676]
[1721239654772,43.523,156.9,156.86,6.3749]
[1721239654965,43.523,156.9,156.86,7.64971862]
[1721239655348,43.523,156.9,156.86,6.3749]
[1721239655668,15.64,156.89,156.86,6.375]
[1721239655872,43.5232,156.9,156.86,6.375]
[1721239656656,27.8832,156.9,156.86,6.375]
[1721239657552,43.5232,156.9,156.86,6.375]
[1721239657756,21.5096,156.9,156.84,15.64]
[1721239657965,16.45062499,156.89,156.84,31.5795]
[1721239658147,6.3745,156.88,156.84,37.9552]
[1721239658468,6.3739,156.89,156.85,22.0154]
[1721239658670,22.0139,156.89,156.85,6.3754]
[1721239659577,6.3744,156.88,156.84,31.5795]
[1721239659778,6.3747,156.87,156.83,22.0162]
[1721239659949,6.3751,156.86,156.83,15.64]
[1721239660150,6.3751,156.86,156.82,22.0166]
[1721239660363,6.3751,156.86,156.82,6.3766]
[1721239660578,6.3757,156.85,156.82,15.64]
[1721239660758,15.64,156.86,156.83,6.3762]
[1721239661751,0.81062499,156.86,156.83,6.3762]
[1721239661951,22.82582499,156.86,156.81,37.9589]
[1721239662165,22.82582499,156.86,156.82,6.3766]
[1721239663374,22.0152,156.86,156.82,6.3766]
[1721239663548,0.81062499,156.85,156.81,37.9591]
[1721239663753,16.45062499,156.85,156.81,22.3191]
[1721239663971,6.3765,156.83,156.79,6.3775]
[1721239664171,15.64,156.82,156.79,6.3775]
[1721239664374,44.3053,156.84,156.79,22.0175]
[1721239664754,6.3764,156.83,156.79,22.0175]
[1721239665278,37.9294,156.84,156.8,7.65275212]
[1721239665279,44.3053,156.84,156.8,7.65275212]
[1721239665574,6.3768,156.82,156.79,15.64]
[1721239666587,6.3764,156.83,156.79,22.0176]
[1721239666764,15.64,156.83,156.78,31.5854]
[1721239666962,22.0166,156.83,156.79,6.3779]
[1721239667179,22.016,156.84,156.8,6.3775]
[1721239667355,6.376,156.84,156.8,22.0175]
[1721239667959,6.3763,156.83,156.79,22.0178]
[1721239668153,6.3767,156.82,156.79,15.64]
[1721239668359,6.3767,156.82,156.78,37.9636]
[1721239668666,6.3764,156.83,156.79,23.29325445]
[1721239668870,22.0163,156.84,156.8,6.3775]
[1721239669082,22.0163,156.84,156.79,15.64]
[1721239669083,15.64,156.84,156.79,15.64]
[1721239669583,6.3763,156.83,156.79,22.0176]
[1721239670766,6.376,156.84,156.8,23.29272584]
[1721239671068,7.18662499,156.84,156.8,23.29272584]
[1721239671377,6.376,156.84,156.8,23.29272584]
[1721239671757,6.3755,156.85,156.81,23.2922032]
[1721239671991,6.3755,156.85,156.82,15.64]
[1721239672159,0.81062499,156.86,156.82,7.65188123]
[1721239672160,7.18582499,156.86,156.82,7.65188123]
[1721239672363,6.3755,156.85,156.81,22.0169]
[1721239673386,22.0152,156.86,156.82,7.65178114]
[1721239673591,6.3756,156.85,156.81,22.017]
[1721239673881,6.3756,156.85,156.82,15.64]
[1721239674274,6.3756,156.85,156.81,22.017]
[1721239674469,6.3763,156.83,156.81,15.64]
[1721239674672,6.376,156.84,156.8,37.961]
[1721239675965,6.376,156.84,156.81,6.3771]
[1721239676377,6.3756,156.85,156.82,6.3767]
[1721239676685,6.3755,156.85,156.81,22.017]
[1721239676877,22.0152,156.86,156.82,6.3767]
[1721239677181,6.3756,156.85,156.81,22.017]
[1721239677858,6.3756,156.85,156.82,15.64]
[1721239679086,6.3756,156.85,156.81,22.017]
[1721239679281,6.3759,156.84,156.81,15.64]
[1721239679581,6.3759,156.84,156.82,1.27517865]
[1721239679883,6.3751,156.86,156.83,1.27512896]
[1721239680078,6.3751,156.86,156.83,16.91512896]
[1721239680273,6.3756,156.85,156.83,15.64]
[1721239680769,6.3752,156.86,156.83,15.64]
[1721239681080,6.3752,156.86,156.83,16.91504169]
[1721239681687,6.3747,156.87,156.83,23.29094169]
[1721239681869,6.3747,156.87,156.84,15.64]
[1721239682180,6.3747,156.87,156.85,15.64]
[1721239682381,6.3751,156.86,156.82,22.3174]
[1721239682569,6.3751,156.86,156.83,15.64]
[1721239683284,0.81062499,156.9,156.85,15.64]
[1721239683465,15.9333,156.91,156.86,16.91482104]
[1721239683466,32.38392499,156.91,156.86,16.91482104]
[1721239683668,6.3745,156.88,156.86,16.91482104]
[1721239683864,6.3747,156.87,156.86,16.91482104]
[1721239684066,6.3743,156.88,156.86,16.91482104]
[1721239684277,6.3747,156.87,156.86,16.91482104]
[1721239684468,6.3744,156.88,156.86,15.64]
[1721239685289,6.3744,156.88,156.85,15.64]
[1721239685666,15.64,156.91,156.86,15.64]
[1721239685866,6.3745,156.88,156.86,15.64]
[1721239687184,6.3747,156.87,156.85,15.64]
[1721239687568,6.3751,156.86,156.84,15.64]
[1721239687873,16.45062499,156.89,156.82,12.9199]
[1721239687874,6.3755,156.85,156.82,22.0167]
[1721239688077,6.3755,156.85,156.82,15.64]
[1721239688377,15.64,156.87,156.81,15.942]
[1721239688378,6.376,156.84,156.81,15.942]
[1721239688571,6.3756,156.85,156.82,15.64]
[1721239688771,6.3756,156.85,156.81,37.959]
[1721239689274,6.3756,156.85,156.82,15.64]
[1721239689894,15.936,156.88,156.82,22.0167]
[1721239689895,6.3752,156.86,156.82,22.0167]
[1721239690767,6.3752,156.86,156.83,15.64]
[1721239691776,6.3752,156.86,156.82,22.0167]
[1721239692080,6.3752,156.86,156.82,15.64]
[1721239693390,6.3752,156.86,156.83,15.64]
[1721239693799,6.3752,156.86,156.84,15.64]
[1721239693998,6.3755,156.85,156.82,6.3766]
[1721239694186,6.3755,156.85,156.82,15.64]
[1721239694582,6.376,156.84,156.82,15.64]
[1721239695189,6.376,156.84,156.81,31.582]
[1721239695584,6.3756,156.85,156.81,37.9591]
[1721239695995,6.3756,156.85,156.82,15.64]
[1721239696193,15.64,156.88,156.82,23.29157092]
[1721239696388,16.45062499,156.88,156.82,22.0164]
[1721239696800,6.3753,156.86,156.82,22.0164]
[1721239698006,6.3747,156.87,156.83,22.0159]
[1721239698195,16.74272499,156.92,156.85,15.64]
[1721239698494,15.64,156.9,156.85,15.64]
[1721239698695,0.81062499,156.89,156.85,15.64]
[1721239699478,6.3743,156.88,156.85,15.64]
[1721239699706,6.3743,156.88,156.86,15.64]
[1721239700585,6.3747,156.87,156.86,15.64]
[1721239703195,6.3747,156.87,156.85,15.64]
[1721239705422,6.3751,156.86,156.85,15.64]
[1721239705791,6.3748,156.87,156.85,15.64]
[1721239707293,6.3751,156.86,156.85,15.64]
[1721239708822,6.3743,156.88,156.85,15.64]
[1721239708987,6.3743,156.88,156.86,16.91479445]
[1721239709388,6.3747,156.87,156.86,15.64]
[1721239710109,16.74472499,156.9,156.86,15.64]
[1721239710318,6.3743,156.88,156.86,15.64]
[1721239710496,16.45062499,156.91,156.87,15.64]
[1721239710497,6.3734,156.91,156.87,15.64]
[1721239710704,6.3735,156.9,156.88,15.64]
[1721239711519,6.3735,156.9,156.86,21.9317]
[1721239711689,6.3735,156.9,156.87,15.64]
[1721239712022,0.81062499,156.9,156.86,15.64]
[1721239712208,6.3745,156.88,156.85,15.64]
[1721239712390,6.3745,156.88,156.86,15.64]
[1721239713232,6.374,156.89,156.86,15.64]
[1721239713393,6.3736,156.9,156.87,1.27483925]
[1721239713930,6.3736,156.9,156.86,22.015]
[1721239714718,6.3736,156.9,156.87,15.64]
[1721239715809,6.3743,156.88,156.84,6.3759]
[1721239716028,6.3739,156.89,156.84,22.0159]
[1721239716328,6.3738,156.9,156.86,15.64]
[1721239716490,6.374,156.89,156.86,15.64]
[1721239716689,6.374,156.89,156.85,22.0154]
[1721239717916,6.374,156.89,156.86,15.64]
[1721239719129,6.374,156.89,156.85,15.64]
[1721239719894,6.3743,156.88,156.85,15.64]
[1721239720611,6.374,156.89,156.85,15.64]
[1721239720815,6.374,156.89,156.86,1.27483831]
[1721239721491,6.374,156.89,156.85,22.0154]
[1721239722705,22.014,156.89,156.85,6.3754]
[1721239723092,6.374,156.89,156.85,22.0154]
[1721239724209,22.0135,156.9,156.86,6.375]
[1721239724813,6.3735,156.9,156.86,22.015]
[1721239725112,6.3732,156.91,156.87,7.64940283]
[1721239725309,22.0132,156.91,156.87,6.3746]
[1721239726414,6.3732,156.91,156.87,6.3746]
[1721239728414,16.45062499,156.92,156.86,31.5775]
[1721239728415,6.3735,156.9,156.86,37.9524]
[1721239729631,63.3710305,156.96,156.9,6.3733]
[1721239729632,7.18232499,156.95,156.9,6.3733]
[1721239729834,17.26165549,156.96,156.91,1.27439783]
[1721239730119,6.3718,156.94,156.91,16.91439783]
[1721239730303,0.8110305,156.96,156.93,15.64]
[1721239730503,7.1823305,156.96,156.93,15.64]
[1721239730702,7.1823305,156.96,156.92,22.3038]
[1721239731110,22.8223305,156.96,156.92,22.3038]
[1721239731705,7.1823305,156.96,156.92,37.9438]
[1721239732421,7.1823305,156.96,156.93,1.27424936]
[1721239732811,7.1823305,156.96,156.92,37.9438]
[1721239734018,7.1823305,156.96,156.93,1.27425188]
[1721239734219,7.1823305,156.96,156.92,37.9438]
[1721239734420,6.3715,156.95,156.92,31.5712]
[1721239735008,6.3715,156.95,156.93,1.2742634]
[1721239735211,6.6822305,156.96,156.93,1.2742634]
[1721239736030,6.6820305,156.96,156.93,15.64]
[1721239737312,6.6820305,156.96,156.94,1.2741863]
[1721239737507,0.3110305,156.96,156.93,22.0122]
[1721239738024,6.6821305,156.96,156.93,15.64]
[1721239738641,0.3110305,156.96,156.94,16.91417479]
[1721239738805,0.3110305,156.96,156.94,15.64]
[1721239740717,6.6821305,156.96,156.93,15.64]
[1721239742013,0.3110305,156.96,156.94,16.91417718]
[1721239742335,0.3110305,156.96,156.94,15.64]
[1721239743028,0.3110305,156.96,156.94,16.91412771]
[1721239743226,0.3110305,156.96,156.94,15.64]
[1721239745557,0.3110305,156.96,156.95,1.27411785]
[1721239745969,6.6821305,156.96,156.92,37.712]
[1721239746155,6.6821305,156.96,156.93,15.64]
[1721239747042,0.3110305,156.96,156.94,1.27417458]
[1721239747372,0.3110305,156.96,156.95,15.64]
[1721239747861,0.3110305,156.96,156.95,22.0114]
[1721239748068,0.3110305,156.96,156.95,15.64]
[1721239748846,0.3110305,156.96,156.95,22.0114]
[1721239750556,0.3110305,156.96,156.95,67.1814]
[1721239751341,0.3110305,156.96,156.95,68.45514184]
[1721239751755,6.3691,157.01,156.97,6.3703]
[1721239751968,6.3687,157.02,156.98,6.3702]
[1721239752165,6.3687,157.02,156.99,16.91371808]